bitfinex-derivatives/quotes_BTCF0:USTF0_20241227
["timestamp","ask_amount","ask_price","bid_price","bid_amount"]
[1735298806480,0.0430487,96598.0,96595.0,0.04407261]
[1735298806661,0.0430487,96598.0,96596.0,0.051831]
[1735298807383,0.051823,96611.0,96604.0,0.051827]
[1735298807384,0.0327,96607.0,96604.0,0.051827]
[1735298807873,0.0327,96607.0,96606.0,0.051826]
[1735298812272,0.1549084,96618.0,96604.0,0.010172]
[1735298812476,0.1861084,96618.0,96597.0,0.10331533]
[1735298812678,0.1549084,96617.0,96597.0,0.10331533]
[1735298812879,0.1549084,96617.0,96605.0,1.5]
[1735298813175,0.1549084,96617.0,96616.0,0.051821]
[1735298813781,0.0312,96618.0,96616.0,0.051821]
[1735298814096,0.051819,96619.0,96616.0,0.051821]
[1735298818578,0.051819,96619.0,96616.0,0.06237932]
[1735298820180,0.0318,96621.0,96620.0,0.051818]
[1735298820686,0.0318,96621.0,96620.0,1.551818]
[1735298823089,0.01027165,96635.0,96620.0,1.551818]
[1735298823090,0.0321,96626.0,96624.0,0.051816]
[1735298823489,0.1549084,96635.0,96620.0,1.5]
[1735298823685,0.1549084,96635.0,96634.0,0.051811]
[1735298824284,0.1549084,96635.0,96634.0,1.551811]
[1735298824985,0.0309,96640.0,96639.0,0.051808]
[1735298825689,0.0309,96640.0,96639.0,1.551808]
[1735298825992,0.1549084,96662.0,96656.0,0.051799]
[1735298826186,0.1549084,96662.0,96639.0,1.5]
[1735298826187,0.1850084,96662.0,96657.0,0.051798]
[1735298826380,0.1850084,96662.0,96658.0,0.051798]
[1735298827391,0.1850084,96662.0,96640.0,0.0643]
[1735298827392,0.0518,96654.0,96639.0,1.51038395]
[1735298827587,0.0308,96653.0,96639.0,1.51038395]
[1735298827887,0.051803,96649.0,96644.0,0.051806]
[1735298828092,0.0326,96648.0,96644.0,0.051806]
[1735298828393,0.051804,96647.0,96631.0,1.5]
[1735298828695,0.0326,96648.0,96630.0,0.35058798]
[1735298828696,0.051806,96643.0,96637.0,0.05336103]
[1735298828895,0.051807,96642.0,96637.0,0.05336103]
[1735298829191,0.0301,96641.0,96637.0,0.05336103]
[1735298831592,0.0301,96641.0,96637.0,0.00155203]
[1735298831792,0.0301,96641.0,96640.0,0.051808]
[1735298833497,0.0301,96641.0,96640.0,1.551808]
[1735298836200,0.0301,96641.0,96640.0,0.051808]
[1735298840502,0.081912,96641.0,96637.0,0.00155203]
[1735298840703,0.051813,96639.0,96637.0,0.00155203]
[1735298840905,0.3301,96641.0,96621.0,1.5]
[1735298841201,0.051821,96623.0,96616.0,0.24727265]
[1735298841403,0.0641,96622.0,96616.0,0.24727265]
[1735298841705,0.0641,96622.0,96617.0,1.5]
[1735298842407,0.0641,96622.0,96617.0,1.551824]
[1735298842595,0.0641,96622.0,96621.0,0.004]
[1735298842904,0.0641,96622.0,96617.0,1.551824]
[1735298843097,0.0641,96622.0,96617.0,1.556824]
[1735298843498,0.0641,96622.0,96617.0,1.551824]
[1735298843698,0.0641,96622.0,96617.0,1.552824]
[1735298844116,0.051819,96620.0,96617.0,1.501]
[1735298844309,0.05182,96618.0,96617.0,1.501]
[1735298845107,0.05182,96618.0,96617.0,0.001]
[1735298845805,0.05182,96618.0,96617.0,1.5]
[1735298846196,0.12361061,96624.0,96617.0,1.5]
[1735298846397,0.12361061,96624.0,96623.0,0.051817]
[1735298846707,0.12361061,96624.0,96623.0,0.06312381]
[1735298847103,0.12361061,96624.0,96623.0,1.56312381]
[1735298847309,0.12361061,96629.0,96628.0,0.051814]
[1735298847509,0.12361061,96629.0,96628.0,0.06312081]
[1735298848106,0.12361061,96629.0,96628.0,1.551814]
[1735298848307,0.12361061,96629.0,96628.0,1.56311774]
[1735298848809,0.12361061,96645.0,96628.0,1.51130741]
[1735298849002,0.10331533,96640.0,96629.0,0.01130741]
[1735298849205,0.10331533,96640.0,96628.0,1.5]
[1735298849405,0.0326,96639.0,96628.0,1.5]
[1735298849604,0.0326,96639.0,96628.0,1.501]
[1735298849907,0.12361061,96635.0,96628.0,0.001]
[1735298850098,0.051814,96630.0,96628.0,0.001]
[1735298850305,0.113314,96629.0,96628.0,0.001]
[1735298850808,0.051815,96627.0,96619.0,0.051819]
[1735298851111,0.051818,96622.0,96619.0,0.051819]
[1735298851307,0.0318,96621.0,96619.0,0.051819]
[1735298851501,0.0615,96629.0,96623.0,0.051817]
[1735298852200,0.051814,96628.0,96623.0,0.051817]
[1735298852398,0.051815,96626.0,96623.0,0.051817]
[1735298853010,0.051815,96626.0,96623.0,0.052817]
[1735298854411,0.17575522,96626.0,96623.0,0.052817]
[1735298854614,0.12394022,96626.0,96623.0,0.001]
[1735298854917,0.12394022,96626.0,96625.0,0.051816]
[1735298855801,0.12394022,96640.0,96639.0,0.051808]
[1735298856509,0.12394022,96640.0,96639.0,1.551808]
[1735298857114,0.0308,96642.0,96639.0,1.551808]
[1735298858199,0.15474022,96642.0,96639.0,1.551808]
[1735298859909,0.15474022,96642.0,96640.0,0.051807]
[1735298862317,0.031,96641.0,96640.0,0.051807]
[1735298863316,0.10331533,96650.0,96640.0,0.051807]
[1735298863317,0.348,96700.0,96640.0,0.051807]
[1735298863520,0.051806,96643.0,96640.0,0.051807]
[1735298864912,0.10331533,96660.0,96636.0,0.01]
[1735298865111,0.051803,96650.0,96638.0,0.30949024]
[1735298865609,0.051803,96649.0,96644.0,0.051805]
[1735298866628,0.0322,96648.0,96644.0,0.051805]
[1735298867021,0.084004,96648.0,96644.0,0.051805]
[1735298867925,0.084004,96648.0,96644.0,0.29904035]
[1735298868426,0.084004,96648.0,96646.0,0.051804]
[1735298869517,0.084004,96648.0,96646.0,0.052804]
[1735298870830,0.084004,96648.0,96646.0,0.30003935]
[1735298872124,0.084004,96648.0,96646.0,0.052804]
[1735298872922,0.084004,96648.0,96646.0,0.001]
[1735298878828,0.084004,96648.0,96646.0,0.24823535]
[1735298879938,0.051793,96669.0,96648.0,0.01]
[1735298880132,0.051793,96669.0,96665.0,0.051794]
[1735298881027,0.10331533,96680.0,96665.0,0.051794]
[1735298881028,0.051793,96668.0,96666.0,1.5]
[1735298881233,0.01031328,96677.0,96665.0,0.30949024]
[1735298881420,0.082494,96666.0,96665.0,0.30949024]
[1735298881729,0.082494,96666.0,96658.0,0.01]
[1735298881730,0.0307,96666.0,96664.0,0.051795]
[1735298882425,0.051791,96672.0,96660.0,1.50052]
[1735298882626,0.051791,96672.0,96665.0,0.051794]
[1735298883029,0.051791,96672.0,96666.0,0.051794]
[1735298883430,0.051791,96672.0,96671.0,0.24693368]
[1735298884439,0.051791,96672.0,96670.0,0.24693368]
[1735298886644,0.0312,96671.0,96670.0,0.24693368]
[1735298887840,0.051791,96672.0,96670.0,0.24693368]
[1735298888036,0.051791,96672.0,96666.0,0.24693368]
[1735298888236,0.051791,96671.0,96666.0,0.24693368]
[1735298888429,0.0326,96679.0,96666.0,0.24693368]
[1735298888637,0.051792,96670.0,96666.0,0.24693368]
[1735298888836,0.051792,96670.0,96665.0,0.29872768]
[1735298891051,0.051792,96670.0,96667.0,0.24693368]
[1735298892047,0.0326,96679.0,96667.0,0.24693368]
[1735298892243,0.051792,96669.0,96666.0,0.24693368]
[1735298892447,0.051793,96668.0,96666.0,0.24693368]
[1735298893455,0.051793,96668.0,96665.0,0.051794]
[1735298893856,0.051794,96666.0,96664.0,0.24693368]
[1735298894547,0.051794,96666.0,96661.0,0.01017752]
[1735298894741,0.051794,96666.0,96659.0,1.50052]
[1735298894939,0.0326,96679.0,96655.0,0.24693368]
[1735298895142,0.051799,96656.0,96655.0,0.24693368]
[1735298895840,0.051801,96652.0,96651.0,0.24693368]
[1735298897153,0.0318,96655.0,96644.0,0.01269477]
[1735298897341,0.051804,96648.0,96641.0,1.552367]
[1735298897546,0.051804,96648.0,96641.0,1.551807]
[1735298898260,0.0318,96655.0,96641.0,1.551807]
[1735298898559,0.051805,96646.0,96641.0,0.051807]
[1735298898748,0.051805,96646.0,96641.0,0.055807]
[1735298899149,0.051805,96646.0,96642.0,0.051806]
[1735298899353,0.0309,96664.0,96652.0,0.01]
[1735298899659,0.051797,96660.0,96655.0,0.051799]
[1735298899955,0.051798,96659.0,96655.0,0.051799]
[1735298900156,0.14909931,96670.0,96652.0,0.01]
[1735298900454,0.0518,96656.0,96652.0,0.01]
[1735298901650,0.0518,96656.0,96652.0,0.011]
[1735298901844,0.051795,96665.0,96657.0,0.051798]
[1735298903561,0.04578398,96670.0,96660.0,0.18508901]
[1735298903756,0.051796,96663.0,96660.0,0.18508901]
[1735298904660,0.051796,96663.0,96661.0,1.5]
[1735298904864,0.051796,96663.0,96660.0,0.18508901]
[1735298905364,0.051796,96663.0,96660.0,1.68508901]
[1735298905563,0.051796,96663.0,96661.0,0.18508901]
[1735298906364,0.051796,96663.0,96661.0,1.68508901]
[1735298908767,0.051796,96663.0,96662.0,0.18508901]
[1735298909653,0.051796,96663.0,96659.0,1.74749368]
[1735298909861,0.051796,96662.0,96659.0,1.74693368]
[1735298910267,0.051797,96661.0,96659.0,1.74693368]
[1735298910771,0.051797,96661.0,96659.0,0.24693368]
[1735298910959,0.0324,96660.0,96659.0,0.24693368]
[1735298911865,0.051799,96656.0,96655.0,0.18526156]
[1735298912067,0.051799,96656.0,96655.0,0.13536156]
[1735298912256,0.051799,96656.0,96655.0,0.08546156]
[1735298913167,0.05181,96635.0,96634.0,0.3086671]
[1735298914254,0.05181,96635.0,96633.0,0.00155219]
[1735298914768,0.05181,96635.0,96634.0,0.001]
[1735298915167,0.05181,96635.0,96634.0,0.004]
[1735298915468,0.05181,96635.0,96634.0,0.003]
[1735298915860,0.051805,96645.0,96636.0,0.05181]
[1735298916170,0.051805,96645.0,96637.0,0.0641]
[1735298916468,0.10331533,96650.0,96637.0,0.0641]
[1735298916673,0.051807,96641.0,96637.0,0.0641]
[1735298916871,0.10331533,96650.0,96633.0,0.00555219]
[1735298917064,0.051811,96634.0,96633.0,0.00555219]
[1735298917263,0.051811,96634.0,96633.0,0.00155219]
[1735298917973,0.051811,96634.0,96633.0,0.00255219]
[1735298918763,0.051811,96634.0,96633.0,0.00155219]
[1735298919765,0.06472223,96634.0,96633.0,0.00155219]
[1735298920073,0.06472223,96634.0,96633.0,0.00355219]
[1735298920673,0.06672223,96634.0,96633.0,0.00155219]
[1735298921672,0.0633478,96634.0,96633.0,0.00155219]
[1735298922973,0.05043657,96634.0,96633.0,0.00155219]
[1735298923468,0.05043657,96634.0,96633.0,1.50155219]
[1735298923664,0.04843657,96634.0,96633.0,1.50155219]
[1735298923870,0.05143657,96634.0,96633.0,1.50155219]
[1735298924275,0.04843657,96634.0,96633.0,1.50155219]
[1735298924474,0.05043657,96634.0,96633.0,1.50155219]
[1735298926878,0.05143657,96634.0,96633.0,1.50155219]
[1735298927281,0.04843657,96634.0,96633.0,1.50155219]
[1735298927481,0.05143657,96634.0,96633.0,1.50155219]
[1735298929480,0.05143657,96634.0,96633.0,0.00155219]
[1735298932781,0.003,96634.0,96633.0,0.00155219]
[1735298932981,0.003,96634.0,96633.0,0.03215219]
[1735298933476,0.002,96634.0,96633.0,1.50155219]
[1735298933673,0.002,96634.0,96633.0,1.53215219]
[1735298934175,0.051809,96638.0,96634.0,0.051811]
[1735298936076,0.051804,96647.0,96633.0,1.53267219]
[1735298936383,0.051811,96635.0,96633.0,0.03215219]
[1735298943387,0.051811,96635.0,96633.0,0.34081929]
[1735298944388,0.051811,96635.0,96634.0,0.69706124]
[1735298945485,0.051811,96635.0,96633.0,0.03215219]
[1735298953887,0.051811,96635.0,96633.0,0.34081929]
[1735298954697,0.051811,96635.0,96634.0,0.69730328]
[1735298956581,0.051811,96635.0,96631.0,0.3086671]
[1735298956784,0.051812,96632.0,96631.0,0.3086671]
[1735298957789,0.051815,96627.0,96626.0,0.3086671]
[1735298959190,0.051816,96624.0,96623.0,0.3086671]
[1735298960095,0.051816,96624.0,96622.0,0.3086671]
[1735298960986,0.051817,96622.0,96621.0,0.3086671]
[1735298961787,0.051817,96622.0,96621.0,0.69738705]
[1735298962896,0.10534943,96634.0,96615.0,1.87190828]
[1735298962897,0.051819,96619.0,96618.0,0.3086671]
[1735298964097,0.051819,96619.0,96618.0,0.3116671]
[1735298964500,0.051819,96619.0,96618.0,0.3126671]
[1735298964701,0.0612,96634.0,96618.0,0.3126671]
[1735298965000,0.051816,96625.0,96623.0,0.051817]
[1735298965499,0.051817,96622.0,96621.0,0.01]
[1735298966897,0.051817,96622.0,96621.0,0.011]
[1735298970597,0.051817,96622.0,96621.0,0.001]
[1735298972200,0.051817,96622.0,96619.0,0.3086671]
[1735298972201,0.051818,96620.0,96619.0,0.3086671]
[1735298972394,0.051818,96620.0,96619.0,0.2587671]
[1735298972795,0.051818,96620.0,96615.0,0.24765919]
[1735298973505,0.051821,96616.0,96615.0,0.24765919]
[1735298974305,0.051818,96620.0,96619.0,0.001]
[1735298975205,0.051818,96620.0,96619.0,0.002]
[1735298976010,0.051818,96620.0,96619.0,0.003]
[1735298984408,0.051829,96601.0,96600.0,0.1]
[1735298985707,0.051829,96601.0,96600.0,0.109]
[1735298986809,0.051829,96601.0,96600.0,0.113]
[1735298993112,0.051829,96601.0,96600.0,0.104]
[1735298993312,0.051829,96601.0,96600.0,0.1]
[1735298995806,0.052829,96601.0,96600.0,0.1]
[1735298996616,0.053829,96601.0,96600.0,0.1]
[1735299000121,0.052829,96601.0,96600.0,0.34765919]
[1735299000420,0.053829,96601.0,96600.0,0.34765919]
[1735299000614,0.054829,96601.0,96600.0,0.34765919]
[1735299001321,0.054829,96601.0,96600.0,0.1]
[1735299009223,0.054829,96601.0,96600.0,0.34805119]
[1735299009721,0.052829,96601.0,96600.0,0.34805119]
[1735299009928,0.055829,96601.0,96600.0,0.34805119]
[1735299010316,0.055829,96601.0,96600.0,1.6]
[1735299010620,0.052829,96601.0,96600.0,1.6]
[1735299010821,0.056829,96601.0,96600.0,1.6]
[1735299011024,0.056829,96601.0,96600.0,0.1]
[1735299011226,0.055829,96601.0,96600.0,0.1]
[1735299011426,0.056829,96601.0,96600.0,0.1]
[1735299011813,0.053829,96601.0,96600.0,0.1]
[1735299013828,0.052829,96601.0,96600.0,0.1]
[1735299014025,0.054829,96601.0,96600.0,0.1]
[1735299016318,0.052829,96601.0,96600.0,0.1]
[1735299016517,0.054829,96601.0,96600.0,0.1]
[1735299016931,0.052829,96601.0,96600.0,0.1]
[1735299017128,0.054829,96601.0,96600.0,0.1]
[1735299017530,0.052829,96601.0,96600.0,0.1]
[1735299017730,0.054829,96601.0,96600.0,0.1]
[1735299018624,0.055829,96601.0,96600.0,0.1]
[1735299019731,0.054829,96601.0,96600.0,0.1]
[1735299020033,0.055829,96601.0,96600.0,0.1]
[1735299020836,0.056829,96601.0,96600.0,0.1]
[1735299021537,0.057829,96601.0,96600.0,0.1]
[1735299026028,0.054829,96601.0,96600.0,0.1]
[1735299026537,0.052829,96601.0,96600.0,0.1]
[1735299026727,0.055829,96601.0,96600.0,0.1]
[1735299029033,0.052829,96601.0,96600.0,0.1]
[1735299029230,0.055829,96601.0,96600.0,0.1]
[1735299032641,0.056829,96601.0,96600.0,0.1]
[1735299033744,0.055829,96601.0,96600.0,0.1]
[1735299034334,0.054829,96601.0,96600.0,0.1]
[1735299036033,0.053829,96601.0,96600.0,0.1]
[1735299036234,0.054829,96601.0,96600.0,0.1]
[1735299036430,0.052829,96601.0,96600.0,0.1]
[1735299036636,0.055829,96601.0,96600.0,0.1]
[1735299037141,0.054829,96601.0,96600.0,0.1]
[1735299039145,0.053829,96601.0,96600.0,0.1]
[1735299039441,0.054829,96601.0,96600.0,0.1]
[1735299039952,0.052829,96601.0,96600.0,0.1]
[1735299040149,0.054829,96601.0,96600.0,0.1]
[1735299045049,0.003,96601.0,96600.0,0.1]
[1735299045242,0.01234184,96606.0,96605.0,0.061827]
[1735299045542,0.1352861,96620.0,96600.0,0.1]
[1735299045750,0.051828,96602.0,96601.0,1.5]
[1735299046553,0.051828,96602.0,96600.0,0.1]
[1735299047853,0.055828,96602.0,96600.0,0.1]
[1735299048552,0.055828,96602.0,96599.0,0.23284485]
[1735299048553,0.004,96602.0,96599.0,0.23284485]
[1735299048753,0.051829,96600.0,96599.0,0.23284485]
[1735299049053,0.05183,96599.0,96598.0,0.18595245]
[1735299050050,0.053829,96600.0,96588.0,0.0315]
[1735299050258,0.051835,96589.0,96588.0,0.0315]
[1735299051947,0.051839,96582.0,96581.0,0.18595245]
[1735299052345,0.051841,96578.0,96576.0,0.18595245]
[1735299053547,0.051841,96578.0,96576.0,0.19195245]
[1735299054544,0.051841,96578.0,96577.0,1.5]
[1735299056150,0.051841,96578.0,96577.0,1.506]
[1735299056352,0.051841,96578.0,96577.0,1.508]
[1735299056549,0.051841,96578.0,96577.0,0.008]
[1735299056955,0.051841,96578.0,96577.0,0.006]
[1735299057159,0.051841,96578.0,96577.0,0.007]
[1735299057856,0.051841,96578.0,96577.0,0.005]
[1735299058159,0.06381575,96578.0,96577.0,0.005]
[1735299058350,0.051841,96578.0,96577.0,0.005]
[1735299058754,0.051843,96574.0,96573.0,0.0332]
[1735299059860,0.052843,96574.0,96573.0,0.0332]
[1735299060365,0.051843,96574.0,96573.0,0.0332]
[1735299062962,0.052843,96574.0,96573.0,0.0332]
[1735299064063,0.051845,96571.0,96570.0,0.18595245]
[1735299065761,0.051845,96571.0,96541.0,0.0966]
[1735299065762,0.051853,96555.0,96554.0,0.18595245]
[1735299066967,0.10307388,96569.0,96554.0,0.007]
[1735299067269,0.051849,96564.0,96554.0,0.060854]
[1735299067568,0.051849,96564.0,96555.0,0.051853]
[1735299068158,0.11488275,96569.0,96555.0,0.051853]
[1735299068353,0.051847,96568.0,96554.0,0.019]
[1735299068555,0.11488275,96569.0,96554.0,0.019]
[1735299068556,0.051851,96560.0,96554.0,0.019]
[1735299069658,0.051851,96560.0,96555.0,0.006]
[1735299069858,0.051851,96560.0,96555.0,0.008]
[1735299070059,0.11488275,96569.0,96555.0,0.002]
[1735299070458,0.11488275,96569.0,96554.0,0.019]
[1735299071161,0.051852,96559.0,96554.0,0.017]
[1735299071367,0.051852,96559.0,96555.0,0.008]
[1735299071568,0.051852,96559.0,96556.0,1.5]
[1735299071752,0.051852,96559.0,96557.0,0.0314]
[1735299072158,0.051852,96559.0,96558.0,0.0642]
[1735299074169,0.051852,96559.0,96553.0,0.18595245]
[1735299074170,0.051854,96554.0,96553.0,0.18595245]
[1735299075964,0.051859,96544.0,96543.0,0.21865245]
[1735299077265,0.051859,96544.0,96543.0,0.0327]
[1735299079656,0.051859,96544.0,96543.0,1.5347]
[1735299080362,0.052859,96544.0,96543.0,0.0327]
[1735299082056,0.051859,96544.0,96543.0,0.0337]
[1735299082573,0.051859,96544.0,96543.0,0.0327]
[1735299082768,0.051862,96538.0,96537.0,0.01]
[1735299090069,0.052862,96538.0,96537.0,0.01]
[1735299092076,0.10307388,96547.0,96537.0,0.01]
[1735299092277,0.051861,96541.0,96537.0,0.01]
[1735299092477,0.001,96538.0,96537.0,0.01]
[1735299093169,0.051862,96540.0,96537.0,0.011]
[1735299094178,0.051862,96540.0,96537.0,0.01]
[1735299094380,0.051862,96540.0,96537.0,0.011]
[1735299098182,0.10307388,96547.0,96537.0,0.011]
[1735299098480,0.051862,96539.0,96537.0,0.011]
[1735299099376,0.051862,96539.0,96537.0,0.01]
[1735299099582,0.051862,96539.0,96537.0,0.011]
[1735299101783,0.051862,96539.0,96537.0,0.01]
[1735299102082,0.051862,96539.0,96537.0,0.001]
[1735299102471,0.0329,96538.0,96537.0,0.001]
[1735299103486,0.0329,96538.0,96529.0,0.31005806]
[1735299103487,0.10307388,96520.0,96492.0,0.3656]
[1735299103778,0.10307388,96520.0,96493.0,0.01138857]
[1735299103981,0.10307388,96520.0,96506.0,0.05188]
[1735299104287,0.10307388,96520.0,96507.0,0.01138857]
[1735299104481,0.051876,96513.0,96508.0,1.51138857]
[1735299104680,0.051877,96512.0,96508.0,1.5]
[1735299104880,0.10307388,96520.0,96508.0,1.5]
[1735299105177,0.051877,96511.0,96508.0,1.5]
[1735299105384,0.12424515,96509.0,96508.0,1.68648766]
[1735299105687,0.12424515,96509.0,96508.0,0.18648766]
[1735299106183,0.12424515,96509.0,96508.0,0.19448766]
[1735299106682,0.12424515,96509.0,96473.0,0.35644599]
[1735299106683,0.12424515,96509.0,96488.0,1.5]
[1735299106880,0.051889,96489.0,96488.0,1.5]
[1735299107081,0.051889,96489.0,96485.0,0.0301]
[1735299107278,0.05189,96487.0,96485.0,0.0301]
[1735299107477,0.051891,96485.0,96476.0,0.051896]
[1735299107676,0.10307388,96486.0,96473.0,0.0321]
[1735299107877,0.051896,96476.0,96473.0,0.0321]
[1735299108074,0.051897,96475.0,96473.0,0.0321]
[1735299108284,0.10307388,96483.0,96472.0,0.00155424]
[1735299108484,0.051897,96474.0,96472.0,0.00155424]
[1735299109479,0.051897,96474.0,96473.0,0.009]
[1735299111081,0.052897,96474.0,96473.0,0.004]
[1735299111678,0.052897,96474.0,96473.0,0.013]
[1735299113279,0.052897,96474.0,96473.0,1.509]
[1735299113479,0.052897,96474.0,96473.0,1.512]
[1735299114089,0.051897,96474.0,96473.0,1.505]
[1735299114682,0.051897,96474.0,96473.0,1.503]
[1735299117695,0.14451143,96482.0,96473.0,1.503]
[1735299118585,0.09261843,96482.0,96473.0,1.5]
[1735299119098,0.19569231,96490.0,96473.0,1.5]
[1735299119298,0.051893,96481.0,96473.0,1.5]
[1735299119482,0.051889,96489.0,96473.0,1.5]
[1735299119686,0.05189,96487.0,96477.0,0.051895]
[1735299120598,0.05189,96487.0,96473.0,1.50052]
[1735299120599,0.05189,96487.0,96479.0,0.051894]
[1735299120787,0.01132329,96490.0,96481.0,0.051893]
[1735299120989,0.19569231,96491.0,96481.0,0.051893]
[1735299121292,0.05189,96488.0,96482.0,1.5]
[1735299121893,0.05189,96488.0,96481.0,0.051893]
[1735299122393,0.10307388,96491.0,96480.0,1.5332]
[1735299122597,0.09261843,96494.0,96480.0,1.5332]
[1735299122795,0.09261843,96494.0,96481.0,0.0316]
[1735299122992,0.10307388,96491.0,96483.0,0.051892]
[1735299124600,0.10307388,96491.0,96483.0,0.053892]
[1735299125089,0.09261843,96491.0,96485.0,0.051891]
[1735299125294,0.09261843,96491.0,96487.0,0.05189]
[1735299126690,0.051886,96494.0,96487.0,0.05189]
[1735299128893,0.051886,96494.0,96487.0,0.05489]
[1735299129894,0.09261843,96490.0,96487.0,0.05489]
[1735299130398,0.04271843,96490.0,96488.0,0.051889]
[1735299130903,0.04271843,96490.0,96489.0,1.5]
[1735299131406,0.1236548,96496.0,96489.0,1.5]
[1735299132390,0.1236548,96495.0,96489.0,1.5]
[1735299132695,0.1236548,96495.0,96489.0,1.501]
[1735299132896,0.1236548,96495.0,96491.0,0.051887]
[1735299133605,0.1236548,96492.0,96491.0,0.051887]
[1735299134501,0.1236548,96492.0,96491.0,0.351887]
[1735299134702,0.15493438,96498.0,96497.0,0.051885]
[1735299135097,0.15493438,96498.0,96497.0,1.551885]
[1735299135300,0.18636772,96503.0,96501.0,0.051882]
[1735299135499,0.18636772,96503.0,96502.0,0.0626]
[1735299136198,0.18636772,96503.0,96502.0,1.5626]
[1735299136709,0.051879,96508.0,96502.0,1.5626]
[1735299137901,0.051879,96508.0,96502.0,1.57393852]
[1735299138293,0.051879,96508.0,96502.0,1.57493852]
[1735299138912,0.1551957,96514.0,96511.0,0.051877]
[1735299139908,0.051875,96515.0,96511.0,0.051877]
[1735299140513,0.051875,96515.0,96504.0,0.051881]
[1735299140806,0.00155444,96523.0,96502.0,1.57493852]
[1735299140807,0.1551957,96517.0,96515.0,0.051875]
[1735299141395,0.18636772,96524.0,96523.0,0.051871]
[1735299141697,0.21742901,96538.0,96524.0,0.3656]
[1735299141901,0.21742901,96538.0,96537.0,0.051863]
[1735299142602,0.2494103,96545.0,96537.0,0.051863]
[1735299142603,0.00092,96545.0,96544.0,0.051859]
[1735299142797,0.0306,96550.0,96537.0,0.00052]
[1735299142998,0.0306,96550.0,96540.0,0.10307388]
[1735299143304,0.0306,96550.0,96545.0,0.051858]
[1735299144709,0.0336,96550.0,96545.0,0.051858]
[1735299144906,0.0336,96550.0,96529.0,0.37676094]
[1735299145111,0.051861,96541.0,96530.0,0.051867]
[1735299145811,0.051861,96541.0,96531.0,1.5]
[1735299146010,0.051861,96541.0,96537.0,0.051863]
[1735299148305,0.051861,96541.0,96531.0,1.50052]
[1735299148503,0.051861,96541.0,96539.0,0.051862]
[1735299151916,0.0306,96550.0,96531.0,1.5]
[1735299152117,0.0306,96550.0,96549.0,0.051857]
[1735299152504,0.0306,96550.0,96549.0,1.551857]
[1735299152902,0.032,96551.0,96549.0,1.551857]
[1735299153115,0.0321,96562.0,96549.0,1.551857]
[1735299153317,0.0321,96562.0,96561.0,0.05185]
[1735299154411,0.0321,96562.0,96561.0,1.55185]
[1735299154611,0.0371,96562.0,96561.0,1.55185]
[1735299154813,0.0461,96562.0,96561.0,1.55285]
[1735299155013,0.014,96562.0,96561.0,1.55285]
[1735299155411,0.014,96562.0,96561.0,1.85285]
[1735299155621,0.014,96562.0,96561.0,2.21845]
[1735299156027,0.0321,96578.0,96561.0,2.21845]
[1735299156028,0.0321,96578.0,96577.0,0.051842]
[1735299156218,0.0314,96581.0,96580.0,0.05184]
[1735299156819,0.0314,96581.0,96580.0,1.55184]
[1735299157820,0.0354,96581.0,96580.0,1.55184]
[1735299158015,0.0364,96581.0,96580.0,1.55184]
[1735299159028,0.00155323,96606.0,96580.0,1.8]
[1735299159223,0.032,96605.0,96599.0,0.05183]
[1735299159829,0.032,96605.0,96599.0,1.55183]
[1735299160530,0.103,96600.0,96599.0,1.55183]
[1735299161225,0.103,96600.0,96599.0,1.85183]
[1735299161623,0.103,96600.0,96599.0,1.55183]
[1735299162631,0.103,96600.0,96599.0,1.91743]
[1735299163027,0.103,96600.0,96599.0,2.21743]
[1735299163529,0.103,96600.0,96599.0,1.91743]
[1735299163826,0.032,96618.0,96601.0,0.3656]
[1735299164021,0.032,96618.0,96617.0,0.05182]
[1735299164925,0.032,96618.0,96617.0,1.55182]
[1735299166722,0.032,96618.0,96617.0,0.05282]
[1735299167934,0.032,96618.0,96617.0,1.55282]
[1735299168334,0.0303,96625.0,96624.0,0.051816]
[1735299170829,0.0303,96625.0,96618.0,0.3656]
[1735299171032,0.0303,96625.0,96624.0,0.051816]
[1735299171236,0.0303,96625.0,96618.0,0.3157]
[1735299171429,0.051817,96623.0,96618.0,0.3157]
[1735299171629,0.0303,96625.0,96609.0,0.051824]
[1735299171836,0.051828,96602.0,96601.0,1.5]
[1735299172035,0.051828,96602.0,96598.0,0.05183]
[1735299172440,0.051824,96609.0,96602.0,0.051828]
[1735299172638,0.051824,96609.0,96603.0,0.051827]
[1735299173135,0.051825,96608.0,96603.0,0.051827]
[1735299173439,0.051825,96608.0,96604.0,1.5]
[1735299174341,0.0312,96607.0,96604.0,1.5]
[1735299175937,0.0312,96607.0,96604.0,1.551827]
[1735299176132,0.051817,96623.0,96619.0,0.051819]
[1735299176333,0.051817,96623.0,96610.0,0.10307388]
[1735299176633,0.0312,96624.0,96610.0,0.10307388]
[1735299176835,0.0312,96624.0,96619.0,0.051819]
[1735299177336,0.0312,96624.0,96620.0,0.051818]
[1735299177737,0.051815,96627.0,96621.0,0.051818]
[1735299177943,0.001,96624.0,96621.0,0.051818]
[1735299178428,0.051815,96626.0,96621.0,0.051818]
[1735299178630,0.001,96624.0,96621.0,0.051818]
[1735299178831,0.001,96624.0,96622.0,1.5]
[1735299179345,0.001,96624.0,96621.0,0.051818]
[1735299180943,0.001,96624.0,96623.0,0.051817]
[1735299181646,0.0314,96631.0,96610.0,0.11429146]
[1735299181647,0.0314,96631.0,96610.0,0.10307388]
[1735299181835,0.0314,96631.0,96606.0,0.0331]
[1735299181836,0.0314,96631.0,96630.0,0.051813]
[1735299182037,0.0314,96631.0,96630.0,1.551813]